fUST/lending_fUST_20250204
["ID","MTS","AMOUNT","RATE_DAILY","PERIOD"]
[351606506,1738659045580,-500.0,0.00016712,2]
[351606507,1738659045590,-700.37,0.00016712,2]
[351606508,1738659045599,-373.72105351,0.00016712,2]
[351606509,1738659045610,-500.0,0.00016712,2]
[351606510,1738659045620,-912.13,0.00016712,2]
[351606511,1738659045629,-636.87,0.00016712,2]
[351606512,1738659045639,-1367.82,0.00016712,2]
[351606513,1738659045650,-3997.78,0.00016712,2]
[351606514,1738659045661,-1683.41,0.00016712,2]
[351606515,1738659045671,-500.0,0.00016712,2]
[351606516,1738659045680,-873.23,0.00016712,2]
[351606517,1738659045690,-500.0,0.00016712,2]
[351606518,1738659045699,-5410.07,0.00016712,2]
[351606520,1738659045712,-596.88,0.00016712,2]
[351606521,1738659045721,-1592.1,0.00016712,2]
[351606523,1738659045731,-725.72,0.00016712,2]
[351606525,1738659045741,-500.0,0.00016712,2]
[351606527,1738659045752,-500.0,0.00016712,2]
[351606529,1738659045762,-500.0,0.00016712,2]
[351606531,1738659045772,-352.83776665,0.00016712,2]
[351606533,1738659045782,-2452.61,0.00016712,2]
[351606535,1738659045791,-500.0,0.00016712,2]
[351606537,1738659045800,-500.0,0.00016712,2]
[351606539,1738659045809,-984.6,0.00016712,2]
[351606540,1738659045818,-777.07,0.00016712,2]
[351606542,1738659045827,-378.27194955,0.00016712,2]
[351606545,1738659045838,-500.0,0.00016712,2]
[351606546,1738659045847,-614.69,0.00016712,2]
[351606548,1738659045857,-500.0,0.00016712,2]
[351606550,1738659045866,-1481.26,0.00016712,2]
[351606553,1738659045875,-975.37,0.00016712,2]
[351606555,1738659045887,-154.3274537,0.00016712,2]
[351606556,1738659045896,-507.4044102,0.00016712,2]
[351606569,1738659046006,-155.5416266,0.00016712,2]
[351606571,1738659046016,-500.0,0.00016773,2]
[351606573,1738659046026,-651.74,0.00016848,2]
[351606575,1738659046035,-651.74,0.00016848,2]
[351606577,1738659046044,-651.74,0.00016848,2]
[351606579,1738659046053,-651.74,0.00016848,2]
[351606581,1738659046062,-651.74,0.00016848,2]
[351606583,1738659046071,-651.74,0.00016848,2]
[351606586,1738659046081,-651.81372873,0.00016848,2]
[351606589,1738659046090,-505.19380078,0.00016849,2]
[351606592,1738659046100,-500.0,0.00016849,2]
[351606595,1738659046110,-3170.18,0.00016849,2]
[351606597,1738659046118,-500.0,0.00016849,2]
[351606600,1738659046126,-500.0,0.00016849,2]
[351606602,1738659046135,-167.45859521,0.00016849,2]
[351606605,1738659046144,-500.0,0.00016849,2]
[351606607,1738659046154,-500.0,0.00016849,2]
[351606609,1738659046164,-500.0,0.00016849,2]
[351606611,1738659046174,-762.41,0.00016849,2]
[351606614,1738659046182,-500.0,0.00016849,2]
[351606616,1738659046192,-698.57,0.00016849,2]
[351606619,1738659046202,-579.2509459,0.00016849,2]
[351606621,1738659046213,-500.0,0.00016849,2]
[351606623,1738659046223,-500.0,0.00016849,2]
[351606626,1738659046232,-500.0,0.00016849,2]
[351606629,1738659046241,-622.11,0.00016849,2]
[351606631,1738659046250,-500.0,0.00016849,2]
[351606633,1738659046260,-500.0,0.00016849,2]
[351606636,1738659046270,-1524.56,0.00016849,2]
[351606638,1738659046279,-500.0,0.00016849,2]
[351606640,1738659046288,-600.39066318,0.00016849,2]
[351606642,1738659046297,-639.57,0.00016849,2]
[351606644,1738659046306,-186.5053653,0.00016849,2]
[351606646,1738659046315,-500.0,0.00016849,2]
[351606648,1738659046325,-500.0,0.00016849,2]
[351606650,1738659046334,-593.76,0.00016849,2]
[351606653,1738659046343,-4182.19,0.00016849,2]
[351606656,1738659046353,-500.0,0.00016849,2]
[351606657,1738659046362,-13920.18,0.00016849,2]
[351606659,1738659046372,-730.8,0.00016849,2]
[351606661,1738659046381,-1621.29,0.00016849,2]
[351606663,1738659046391,-500.0,0.00016849,2]
[351606666,1738659046400,-816.87,0.00016849,2]
[351606668,1738659046409,-500.0,0.00016849,2]
[351606670,1738659046418,-7239.82,0.00016849,2]
[351606672,1738659046427,-982.86,0.00016849,2]
[351606674,1738659046436,-500.0,0.00016849,2]
[351606676,1738659046445,-622.95692336,0.00016849,2]
[351606678,1738659046454,-882.36,0.00016849,2]
[351606679,1738659046464,-579.26,0.00016849,2]
[351606681,1738659046473,-162.41170645,0.00016849,2]
[351606683,1738659046482,-500.0,0.00016849,2]
[351606685,1738659046491,-2596.17,0.00016849,2]
[351606687,1738659046501,-500.0,0.00016849,2]
[351606689,1738659046510,-500.0,0.00016849,2]
[351606691,1738659046519,-500.0,0.00016849,2]
[351606693,1738659046528,-716.46,0.00016849,2]
[351606694,1738659046537,-500.0,0.00016849,2]
[351606696,1738659046546,-901.08,0.00016849,2]
[351606698,1738659046555,-500.0,0.00016849,2]
[351606700,1738659046566,-500.0,0.00016849,2]
[351606702,1738659046579,-500.0,0.00016849,2]
[351606704,1738659046588,-500.0,0.00016849,2]
[351606706,1738659046598,-500.0,0.00016849,2]
[351606708,1738659046608,-700.37,0.00016849,2]
[351606710,1738659046618,-500.0,0.00016849,2]
[351606712,1738659046627,-912.13,0.00016849,2]
[351606714,1738659046637,-636.87,0.00016849,2]
[351606716,1738659046646,-1367.82,0.00016849,2]
[351606718,1738659046655,-3997.78,0.00016849,2]
[351606720,1738659046665,-1683.41,0.00016849,2]
[351606722,1738659046674,-500.0,0.00016849,2]
[351606724,1738659046684,-873.23,0.00016849,2]
[351606725,1738659046693,-500.0,0.00016849,2]
[351606727,1738659046703,-5410.07,0.00016849,2]
[351606729,1738659046715,-596.88,0.00016849,2]
[351606731,1738659046725,-1592.1,0.00016849,2]
[351606733,1738659046735,-725.72,0.00016849,2]
[351606735,1738659046745,-500.0,0.00016849,2]
[351606737,1738659046755,-284.48,0.00016849,2]
[351606739,1738659046766,-2452.61,0.00016849,2]
[351606741,1738659046776,-554.724698,0.00016849,2]
[351606743,1738659046786,-984.6,0.00016849,2]
[351606745,1738659046796,-777.07,0.00016849,2]
[351606747,1738659046806,-614.69,0.00016849,2]
[351606749,1738659046816,-500.0,0.00016849,2]
[351606751,1738659046825,-1481.26,0.00016849,2]
[351606753,1738659046835,-975.37,0.00016849,2]
[351606755,1738659046843,-151.0,0.00016986,2]
[351606757,1738659046853,-295.09,0.00016986,2]
[351606759,1738659046862,-1101.5951759,0.00016986,2]
[351606771,1738659046979,-2068.5848241,0.00016986,2]
[351606773,1738659046990,-500.0,0.00016986,2]
[351606775,1738659047000,-500.0,0.00016986,2]
[351606777,1738659047009,-500.0,0.00016986,2]
[351606779,1738659047019,-500.0,0.00016986,2]
[351606781,1738659047028,-762.41,0.00016986,2]
[351606783,1738659047037,-500.0,0.00016986,2]
[351606785,1738659047046,-698.57,0.00016986,2]
[351606787,1738659047056,-500.0,0.00016986,2]
[351606789,1738659047065,-500.0,0.00016986,2]
[351606791,1738659047076,-500.0,0.00016986,2]
[351606793,1738659047086,-622.11,0.00016986,2]
[351606795,1738659047095,-500.0,0.00016986,2]
[351606797,1738659047105,-500.0,0.00016986,2]
[351606798,1738659047114,-1524.56,0.00016986,2]
[351606800,1738659047123,-500.0,0.00016986,2]
[351606802,1738659047133,-639.57,0.00016986,2]
[351606804,1738659047142,-500.0,0.00016986,2]
[351606806,1738659047152,-424.86869562,0.00016986,2]
[351606808,1738659047161,-593.76,0.00016986,2]
[351606810,1738659047171,-4182.19,0.00016986,2]
[351606812,1738659047181,-500.0,0.00016986,2]
[351606814,1738659047191,-5239.86188812,0.00016986,2]
[351606851,1738659047556,-202.92569866,0.00016237,2]
[351606853,1738659047567,-1267.07430134,0.00016986,2]
[351606855,1738659047582,-7413.24381054,0.00016986,2]
[351606857,1738659047591,-730.8,0.00016986,2]
[351606859,1738659047602,-1621.29,0.00016986,2]
[351606861,1738659047611,-500.0,0.00016986,2]
[351606863,1738659047620,-816.87,0.00016986,2]
[351606864,1738659047630,-500.0,0.00016986,2]
[351606866,1738659047639,-7239.82,0.00016986,2]
[351606868,1738659047650,-964.10858974,0.00016986,2]
[351606874,1738659047698,-202.92569866,0.0001657,2]
[351606876,1738659047708,-18.75141026,0.00016986,2]
[351606878,1738659047717,-500.0,0.00016986,2]
[351606880,1738659047726,-882.36,0.00016986,2]
[351606882,1738659047735,-579.26,0.00016986,2]
[351606884,1738659047745,-500.0,0.00016986,2]
[351606886,1738659047754,-2596.17,0.00016986,2]
[351606888,1738659047763,-500.0,0.00016986,2]
[351606890,1738659047772,-500.0,0.00016986,2]
[351606891,1738659047781,-500.0,0.00016986,2]
[351606893,1738659047790,-716.46,0.00016986,2]
[351606895,1738659047799,-500.0,0.00016986,2]
[351606897,1738659047809,-901.08,0.00016986,2]
[351606899,1738659047818,-500.0,0.00016986,2]
[351606901,1738659047827,-500.0,0.00016986,2]
[351606903,1738659047835,-500.0,0.00016986,2]
[351606905,1738659047845,-500.0,0.00016986,2]
[351606907,1738659047855,-340.85335333,0.00016986,2]
[351606909,1738659047864,-700.37,0.00016986,2]
[351606911,1738659047874,-500.0,0.00016986,2]
[351606913,1738659047883,-912.13,0.00016986,2]
[351606915,1738659047893,-636.87,0.00016986,2]
[351606917,1738659047902,-1367.82,0.00016986,2]
[351606918,1738659047911,-3997.78,0.00016986,2]
[351606920,1738659047920,-1683.41,0.00016986,2]
[351606922,1738659047929,-500.0,0.00016986,2]
[351606924,1738659047938,-873.23,0.00016986,2]
[351606926,1738659047948,-500.0,0.00016986,2]
[351606928,1738659047959,-5410.07,0.00016986,2]
[351606930,1738659047967,-596.88,0.00016986,2]
[351606931,1738659047977,-1592.1,0.00016986,2]
[351606933,1738659047986,-725.72,0.00016986,2]
[351606935,1738659047995,-500.0,0.00016986,2]
[351606937,1738659048005,-2452.61,0.00016986,2]
[351606939,1738659048014,-984.6,0.00016986,2]
[351606941,1738659048023,-777.07,0.00016986,2]
[351606953,1738659048033,-614.69,0.00016986,2]
[351606955,1738659048143,-500.0,0.00016986,2]
[351606957,1738659048154,-1481.26,0.00016986,2]
[351606958,1738659048164,-975.37,0.00016986,2]
[351606959,1738659048173,-1000.0,0.00017,18]
[351606960,1738659048183,-2472.88128379,0.00017,2]
[351606961,1738659048195,-11419.29799999,0.00017,2]
[351606962,1738659048209,-2710.83467595,0.00017,2]
[351607047,1738659273995,197.5109,0.00013973,2]
[351607050,1738660046952,234.60414598,0.00015012,2]
[351607064,1738660151479,196.382925,0.00013973,2]
[351607083,1738660231932,-500.0,0.00015342,2]
[351607084,1738660231942,-300.0,0.00015343,2]
[351607085,1738660231952,-1950.0,0.00015344,2]
[351607086,1738660231986,-22950.0,0.00015344,2]
[351607087,1738660231999,-176.543313,0.00015447,2]
[351607088,1738660232011,-162.34055896,0.000159,2]
[351607089,1738660232021,-4686.72527615,0.00016,2]
[351607090,1738660232031,-1000.0,0.00016,4]
[351607092,1738660232041,-354.1278896,0.00016082,2]
[351607095,1738660232050,-162.954762,0.00016378,5]
[351607097,1738660232059,-499.0,0.00016437,2]
[351607100,1738660232071,-500.0,0.00016438,2]
[351607102,1738660232080,-500.0,0.00016438,2]
[351607104,1738660232089,-500.0,0.00016438,2]
[351607106,1738660232098,-500.0,0.00016438,2]
[351607108,1738660232108,-500.0,0.00016438,2]
[351607110,1738660232117,-500.0,0.00016438,2]
[351607112,1738660232126,-300.97825926,0.00016438,2]
[351607114,1738660232135,-502.22760959,0.00016438,2]
[351607116,1738660232145,-500.0,0.00016438,2]
[351607118,1738660232154,-500.0,0.00016438,2]
[351607120,1738660232165,-500.0,0.00016438,2]
[351607122,1738660232174,-500.0,0.00016438,2]
[351607124,1738660232183,-500.0,0.00016438,2]
[351607126,1738660232193,-500.0,0.00016438,2]
[351607128,1738660232203,-500.0,0.00016438,2]
[351607130,1738660232214,-500.0,0.00016438,2]
[351607132,1738660232225,-500.0,0.00016438,2]
[351607134,1738660232235,-500.0,0.00016438,2]
[351607135,1738660232247,-500.0,0.00016438,2]
[351607137,1738660232259,-500.0,0.00016438,2]
[351607139,1738660232270,-500.0,0.00016438,2]
[351607142,1738660232282,-500.0,0.00016438,2]
[351607143,1738660232291,-500.0,0.00016438,2]
[351607146,1738660232301,-500.0,0.00016438,2]
[351607148,1738660232311,-598.14992722,0.00016438,2]
[351607150,1738660232320,-500.0,0.00016438,2]
[351607152,1738660232330,-500.0,0.00016438,2]
[351607154,1738660232339,-500.0,0.00016438,2]
[351607156,1738660232348,-500.0,0.00016438,2]
[351607158,1738660232357,-500.0,0.00016438,2]
[351607160,1738660232366,-624.75736723,0.00016438,2]
[351607162,1738660232375,-500.0,0.00016438,2]
[351607164,1738660232385,-500.0,0.00016438,2]
[351607166,1738660232394,-500.0,0.00016438,2]
[351607168,1738660232403,-533.62805799,0.00016438,2]
[351607170,1738660232413,-258.84245439,0.00016438,2]
[351607172,1738660232422,-500.0,0.00016438,2]
[351607173,1738660232432,-500.0,0.00016438,2]
[351607176,1738660232453,-500.0,0.00016438,2]
[351607177,1738660232466,-500.0,0.00016438,2]
[351607179,1738660232475,-500.0,0.00016438,2]
[351607182,1738660232485,-500.0,0.00016438,2]
[351607183,1738660232496,-500.0,0.00016438,2]
[351607185,1738660232507,-500.0,0.00016438,2]
[351607188,1738660232517,-500.0,0.00016438,2]
[351607190,1738660232533,-500.0,0.00016438,2]
[351607192,1738660232545,-500.0,0.00016438,2]
[351607193,1738660232555,-603.67,0.00016438,2]
[351607196,1738660232567,-500.0,0.00016438,2]
[351607198,1738660232577,-541.72756121,0.00016438,2]
[351607200,1738660232586,-500.0,0.00016438,2]
[351607202,1738660232597,-500.0,0.00016438,2]
[351607204,1738660232606,-502.83508631,0.00016438,2]
[351607206,1738660232617,-500.0,0.00016438,2]
[351607208,1738660232626,-511.05316783,0.00016438,2]
[351607209,1738660232637,-500.0,0.00016438,2]
[351607212,1738660232647,-500.0,0.00016438,2]
[351607213,1738660232657,-500.0,0.00016438,2]
[351607215,1738660232668,-500.0,0.00016438,2]
[351607217,1738660232677,-500.0,0.00016438,2]
[351607219,1738660232687,-500.0,0.00016438,2]
[351607221,1738660232697,-500.0,0.00016438,2]
[351607223,1738660232706,-500.0,0.00016438,2]
[351607225,1738660232716,-500.0,0.00016438,2]
[351607227,1738660232725,-500.0,0.00016438,2]
[351607229,1738660232734,-500.0,0.00016438,2]
[351607231,1738660232743,-520.14506571,0.00016438,2]
[351607233,1738660232753,-500.0,0.00016438,2]
[351607235,1738660232763,-500.0,0.00016438,2]
[351607237,1738660232772,-500.0,0.00016438,2]
[351607239,1738660232782,-500.0,0.00016438,2]
[351607241,1738660232791,-500.0,0.00016438,2]
[351607243,1738660232800,-500.0,0.00016438,2]
[351607245,1738660232810,-500.0,0.00016438,2]
[351607247,1738660232819,-523.50836409,0.00016438,2]
[351607249,1738660232829,-353.57322542,0.00016438,2]
[351607252,1738660232839,-500.0,0.00016438,2]
[351607254,1738660232848,-500.0,0.00016438,2]
[351607256,1738660232858,-500.0,0.00016438,2]
[351607258,1738660232867,-500.0,0.00016438,2]
[351607260,1738660232876,-500.0,0.00016438,2]
[351607262,1738660232885,-345.91555094,0.00016438,2]
[351607264,1738660232895,-500.0,0.00016438,2]
[351607266,1738660232904,-500.0,0.00016438,2]
[351607268,1738660232913,-500.0,0.00016438,2]
[351607270,1738660232923,-614.16,0.00016438,2]
[351607272,1738660232932,-500.0,0.00016438,2]
[351607273,1738660232942,-500.0,0.00016438,2]
[351607275,1738660232952,-500.0,0.00016438,2]
[351607277,1738660232962,-500.0,0.00016438,2]
[351607280,1738660232972,-500.0,0.00016438,2]
[351607282,1738660232981,-980.64,0.00016438,2]
[351607284,1738660232993,-500.0,0.00016438,2]
[351607286,1738660233003,-500.0,0.00016438,2]
[351607288,1738660233013,-500.0,0.00016438,2]
[351607290,1738660233023,-500.0,0.00016438,2]
[351607292,1738660233034,-534.32149495,0.00016438,2]
[351607294,1738660233044,-316.84474611,0.00016438,2]
[351607296,1738660233054,-955.12,0.00016438,2]
[351607298,1738660233064,-500.0,0.00016438,2]
[351607300,1738660233075,-500.0,0.00016438,2]
[351607302,1738660233087,-500.0,0.00016438,2]
[351607304,1738660233096,-500.0,0.00016438,2]
[351607306,1738660233106,-338.00542148,0.00016438,2]
[351607308,1738660233115,-528.05960842,0.00016438,2]
[351607310,1738660233125,-500.0,0.00016438,2]
[351607312,1738660233134,-500.0,0.00016438,2]
[351607314,1738660233145,-500.0,0.00016438,2]
[351607316,1738660233155,-500.0,0.00016438,2]
[351607318,1738660233165,-200.0,0.00016438,2]
[351607320,1738660233174,-500.0,0.00016438,2]
[351607322,1738660233184,-500.0,0.00016438,2]
[351607324,1738660233194,-500.0,0.00016438,2]
[351607326,1738660233203,-500.0,0.00016438,2]
[351607328,1738660233213,-500.0,0.00016438,2]
[351607330,1738660233224,-500.0,0.00016438,2]
[351607332,1738660233234,-500.0,0.00016438,2]
[351607334,1738660233244,-500.0,0.00016438,2]
[351607336,1738660233253,-505.53283008,0.00016438,2]
[351607337,1738660233267,-500.0,0.00016438,2]
[351607339,1738660233277,-500.0,0.00016438,2]
[351607341,1738660233287,-500.0,0.00016438,2]
[351607344,1738660233300,-500.0,0.00016438,2]
[351607346,1738660233310,-500.0,0.00016438,2]
[351607348,1738660233320,-500.0,0.00016438,2]
[351607350,1738660233330,-500.0,0.00016438,2]
[351607352,1738660233340,-504.56818694,0.00016438,2]
[351607354,1738660233351,-500.0,0.00016438,2]
[351607355,1738660233362,-500.0,0.00016438,2]
[351607357,1738660233373,-867.03,0.00016438,2]
[351607359,1738660233383,-500.0,0.00016438,2]
[351607361,1738660233393,-500.0,0.00016438,2]
[351607363,1738660233403,-500.0,0.00016438,2]
[351607365,1738660233413,-500.0,0.00016438,2]
[351607367,1738660233423,-500.0,0.00016438,2]
[351607370,1738660233434,-500.0,0.00016438,2]
[351607372,1738660233443,-500.0,0.00016438,2]
[351607374,1738660233453,-500.0,0.00016438,2]
[351607376,1738660233464,-500.0,0.00016438,2]
[351607378,1738660233474,-500.0,0.00016438,2]
[351607380,1738660233484,-250.23317765,0.00016438,2]
[351607382,1738660233494,-500.0,0.00016438,2]
[351607384,1738660233505,-500.0,0.00016438,2]
[351607385,1738660233515,-500.0,0.00016438,2]
[351607388,1738660233526,-500.0,0.00016438,2]
[351607389,1738660233538,-500.0,0.00016438,2]
[351607392,1738660233551,-509.64092162,0.00016438,2]
[351607394,1738660233562,-500.0,0.00016438,2]
[351607396,1738660233572,-503.93643847,0.00016438,2]
[351607398,1738660233583,-500.0,0.00016438,2]
[351607400,1738660233594,-500.0,0.00016438,2]
[351607402,1738660233605,-502.0872496,0.00016438,2]
[351607404,1738660233616,-500.0,0.00016438,2]
[351607418,1738660233626,-500.0,0.00016438,2]
[351607420,1738660233760,-500.0,0.00016438,2]
[351607422,1738660233771,-500.0,0.00016438,2]
[351607424,1738660233781,-500.0,0.00016438,2]
[351607426,1738660233791,-509.10665467,0.00016438,2]
[351607428,1738660233802,-511.98004901,0.00016438,2]
[351607430,1738660233813,-500.0,0.00016438,2]
[351607432,1738660233823,-500.0,0.00016438,2]
[351607434,1738660233833,-1461.04,0.00016438,2]
[351607436,1738660233843,-501.71078274,0.00016438,2]
[351607438,1738660233853,-503.46626793,0.00016438,2]
[351607440,1738660233863,-501.43391223,0.00016438,2]
[351607442,1738660233874,-500.0,0.00016438,2]
[351607444,1738660233884,-500.0,0.00016438,2]
[351607446,1738660233894,-500.0,0.00016438,2]
[351607448,1738660233904,-500.0,0.00016438,2]
[351607450,1738660233914,-500.0,0.00016438,2]
[351607452,1738660233923,-500.0,0.00016438,2]
[351607454,1738660233933,-477.57687456,0.00016438,2]
[351607456,1738660233943,-500.0,0.00016438,2]
[351607458,1738660233953,-500.0,0.00016438,2]
[351607460,1738660233962,-500.0,0.00016438,2]
[351607462,1738660233972,-507.52446146,0.00016438,2]
[351607464,1738660233982,-500.0,0.00016438,2]
[351607467,1738660233995,-500.0,0.00016438,2]
[351607468,1738660234005,-862.92,0.00016438,2]
[351607471,1738660234016,-500.0,0.00016438,2]
[351607473,1738660234026,-500.0,0.00016438,2]
[351607474,1738660234036,-500.0,0.00016438,2]
[351607475,1738660234047,-500.0,0.00016438,2]
[351607476,1738660234058,-500.0,0.00016438,2]
[351607477,1738660234068,-500.0,0.00016438,2]
[351607478,1738660234080,-500.0,0.00016438,2]
[351607479,1738660234090,-500.0,0.00016438,2]
[351607480,1738660234100,-500.0,0.00016438,2]
[351607481,1738660234110,-500.0,0.00016438,2]
[351607482,1738660234121,-500.0,0.00016438,2]
[351607483,1738660234130,-500.0,0.00016438,2]
[351607484,1738660234141,-557.05150639,0.00016438,2]
[351607485,1738660234151,-500.0,0.00016438,2]
[351607486,1738660234161,-500.0,0.00016438,2]
[351607487,1738660234171,-500.0,0.00016438,2]
[351607488,1738660234181,-441.5567632,0.00016438,2]
[351607489,1738660234191,-500.0,0.00016438,2]
[351607490,1738660234201,-505.40138683,0.00016438,2]
[351607491,1738660234210,-509.44014121,0.00016438,2]
[351607492,1738660234220,-272.24312041,0.00016438,2]
[351607493,1738660234230,-500.0,0.00016438,2]
[351607494,1738660234240,-500.0,0.00016438,2]
[351607495,1738660234250,-503.29889513,0.00016438,2]
[351607496,1738660234261,-994.69,0.00016438,2]
[351607497,1738660234271,-500.0,0.00016438,2]
[351607498,1738660234280,-500.0,0.00016438,2]
[351607499,1738660234290,-500.0,0.00016438,2]
[351607500,1738660234300,-2254.25,0.00016438,2]
[351607501,1738660234309,-1371.56,0.00016438,2]
[351607502,1738660234318,-500.0,0.00016438,2]
[351607503,1738660234328,-500.0,0.00016438,2]
[351607504,1738660234337,-500.0,0.00016438,2]
[351607505,1738660234349,-5294.97,0.00016438,2]
[351607506,1738660234360,-500.0,0.00016438,2]
[351607507,1738660234370,-500.0,0.00016438,2]
[351607508,1738660234381,-500.0,0.00016438,2]
[351607509,1738660234391,-500.0,0.00016438,2]
[351607510,1738660234401,-8846.79,0.00016438,2]
[351607511,1738660234412,-500.0,0.00016438,2]
[351607512,1738660234422,-500.0,0.00016438,2]
[351607513,1738660234432,-746.62,0.00016438,2]
[351607514,1738660234443,-500.0,0.00016438,2]
[351607515,1738660234453,-500.0,0.00016438,2]
[351607516,1738660234463,-500.0,0.00016438,2]
[351607517,1738660234474,-583.24,0.00016438,2]
[351607518,1738660234483,-500.0,0.00016438,2]
[351607519,1738660234494,-500.0,0.00016438,2]
[351607520,1738660234506,-500.0,0.00016438,2]
[351607521,1738660234516,-500.0,0.00016438,2]
[351607522,1738660234526,-500.0,0.00016438,2]
[351607523,1738660234537,-500.0,0.00016438,2]
[351607524,1738660234547,-950.35,0.00016438,2]
[351607525,1738660234557,-500.0,0.00016438,2]
[351607526,1738660234566,-500.0,0.00016438,2]
[351607527,1738660234576,-506.50061272,0.00016438,2]
[351607528,1738660234586,-500.0,0.00016438,2]
[351607529,1738660234596,-501.80219771,0.00016438,2]
[351607530,1738660234606,-22682.21,0.00016438,2]
[351607531,1738660234615,-500.0,0.00016438,5]
[351607532,1738660234625,-861.77,0.00016438,2]
[351607533,1738660234635,-500.0,0.00016438,2]
[351607534,1738660234645,-500.0,0.00016438,2]
[351607535,1738660234656,-500.0,0.00016438,2]
[351607536,1738660234666,-500.0,0.00016438,2]
[351607537,1738660234676,-500.0,0.00016438,2]
[351607538,1738660234686,-500.0,0.00016438,2]
[351607539,1738660234696,-500.0,0.00016438,2]
[351607540,1738660234706,-500.0,0.00016438,2]
[351607541,1738660234716,-500.0,0.00016438,2]
[351607542,1738660234726,-500.0,0.00016438,2]
[351607543,1738660234736,-500.0,0.00016438,2]
[351607544,1738660234746,-2751.29,0.00016438,2]
[351607545,1738660234760,-500.0,0.00016438,2]
[351607546,1738660234769,-500.0,0.00016438,2]
[351607547,1738660234779,-500.0,0.00016438,2]
[351607548,1738660234789,-500.0,0.00016438,2]
[351607549,1738660234799,-500.0,0.00016438,2]
[351607550,1738660234811,-500.0,0.00016438,2]
[351607551,1738660234820,-500.0,0.00016438,2]
[351607552,1738660234831,-345.55891214,0.00016438,2]
[351607553,1738660234841,-500.0,0.00016438,2]
[351607554,1738660234851,-500.0,0.00016438,2]
[351607555,1738660234862,-769.32,0.00016438,2]
[351607556,1738660234874,-500.0,0.00016438,2]
[351607557,1738660234884,-1234.86,0.00016438,2]
[351607558,1738660234895,-1390.67,0.00016438,2]
[351607559,1738660234906,-553.48,0.00016438,2]
[351607560,1738660234916,-619.4,0.00016438,2]
[351607561,1738660234926,-500.0,0.00016438,2]
[351607562,1738660234937,-508.66649537,0.00016438,2]
[351607563,1738660234947,-500.0,0.00016438,2]
[351607564,1738660234956,-500.0,0.00016438,2]
[351607565,1738660234966,-1302.34,0.00016438,2]
[351607566,1738660234976,-500.0,0.00016438,2]
[351607567,1738660234986,-694.46,0.00016438,2]
[351607568,1738660234998,-13466.28,0.00016438,2]
[351607569,1738660235012,-500.0,0.00016438,2]
[351607570,1738660235022,-500.0,0.00016438,2]
[351607571,1738660235034,-500.0,0.00016438,2]
[351607572,1738660235045,-500.0,0.00016438,2]
[351607573,1738660235056,-1396.27,0.00016438,2]
[351607574,1738660235066,-1396.27,0.00016438,2]
[351607575,1738660235077,-1396.27,0.00016438,2]
[351607576,1738660235087,-506.40964396,0.00016438,2]
[351607577,1738660235097,-1396.27,0.00016438,2]